fUSD/lending_fUSD_20250205
["ID","MTS","AMOUNT","RATE_DAILY","PERIOD"]
[351687385,1738728639668,-27278.53679216,0.00011261,2]
[351687386,1738728639677,-207.65087644,0.00011262,2]
[351687388,1738728639687,-9647.28009505,0.00011263,2]
[351687390,1738728639697,-13823.72752371,0.00011264,2]
[351687392,1738728639707,-104887.35513401,0.00011265,2]
[351687394,1738728639719,-331821.46218122,0.00011266,2]
[351687396,1738728639729,-200.0,0.00011266,2]
[351687398,1738728639739,-24080.28840443,0.00011267,2]
[351687400,1738728639750,-1079.35488235,0.00011268,2]
[351687402,1738728639759,-1023.16329828,0.00011269,2]
[351687404,1738728639769,-371.0,0.00011269,2]
[351687406,1738728639778,-265267.98022265,0.00011269,2]
[351687408,1738728639787,-2500.621619,0.0001127,2]
[351687410,1738728639796,-13823.72752371,0.0001127,2]
[351687412,1738728639805,-2500.621619,0.0001127,2]
[351687414,1738728639815,-27278.53679216,0.00011272,2]
[351687416,1738728639825,-265267.98022265,0.00011273,2]
[351687417,1738728639836,-200.0,0.00011274,2]
[351687419,1738728639846,-7890.97193352,0.00011274,2]
[351687421,1738728639858,-552.29895915,0.00011275,2]
[351687424,1738728639867,-274.86452657,0.00011276,2]
[351687426,1738728639876,-22739.19239448,0.00011278,2]
[351687429,1738728639885,-8816.84959428,0.00011278,2]
[351687432,1738728639895,-22590.19714963,0.00011279,2]
[351687434,1738728639904,-207.65087644,0.00011279,2]
[351687436,1738728639913,-552.29895915,0.00011279,2]
[351687438,1738728639922,-29952.50434939,0.0001128,2]
[351687440,1738728639931,-331821.46218122,0.0001128,2]
[351687442,1738728639940,-8816.84959428,0.00011281,2]
[351687443,1738728639949,-22739.19239448,0.00011281,2]
[351687445,1738728639958,-265267.98022265,0.00011282,2]
[351687447,1738728639967,-1079.35488235,0.00011284,2]
[351687449,1738728639976,-29952.50434939,0.00011284,2]
[351687451,1738728639987,-207.65087644,0.00011287,2]
[351687453,1738728639998,-104887.35513401,0.00011288,2]
[351687455,1738728640008,-7890.97193352,0.00011289,2]
[351687457,1738728640019,-274.86452657,0.0001129,2]
[351687459,1738728640030,-54963.83645117,0.0001129,2]
[351687461,1738728640039,-2500.621619,0.00011291,2]
[351687463,1738728640048,-200.0,0.00011291,2]
[351687465,1738728640056,-274.86452657,0.00011291,2]
[351687467,1738728640066,-619.53173611,0.00011292,2]
[351687469,1738728640076,-1079.35488235,0.00011292,2]
[351687471,1738728640085,-24080.28840443,0.00011293,2]
[351687473,1738728640095,-200.0,0.00011296,2]
[351687474,1738728640105,-644.89771432,0.00011298,2]
[351687476,1738728640114,-9647.28009505,0.00011299,2]
[351687478,1738728640124,-1000.0,0.000113,2]
[351687480,1738728640134,-500.0,0.00011301,2]
[351687482,1738728640144,-43710.02918718,0.00011327,2]
[351687484,1738728640153,-167.91,0.00011356,2]
[351687486,1738728640163,-161.399,0.00011368,2]
[351687488,1738728640172,-2852.89,0.00011368,2]
[351687490,1738728640182,-4000.0,0.0001138,2]
[351687492,1738728640191,-1872.35506325,0.000114,2]
[351687494,1738728640201,-1872.35506324,0.000114,2]
[351687495,1738728640209,-500.0,0.00011438,2]
[351687497,1738728640218,-515.45360008,0.00011468,3]
[351687499,1738728640227,-150.747,0.00011469,2]
[351687501,1738728640235,-170.34,0.00011469,2]
[351687503,1738728640245,-2022.0,0.00011469,2]
[351687505,1738728640254,-1277.473,0.00011469,2]
[351687507,1738728640263,-150.429,0.00011469,2]
[351687509,1738728640273,-586.854,0.00011469,2]
[351687511,1738728640282,-637.0,0.00011469,2]
[351687513,1738728640292,-1867.0,0.00011469,2]
[351687515,1738728640302,-2953.0,0.00011469,2]
[351687516,1738728640311,-907.0,0.00011469,2]
[351687518,1738728640321,-1271.191,0.00011469,2]
[351687520,1738728640330,-786.0,0.00011469,2]
[351687522,1738728640340,-550.944,0.00011469,2]
[351687524,1738728640349,-504.29848858,0.00011473,2]
[351687526,1738728640359,-500.0,0.00011473,2]
[351687528,1738728640369,-500.0,0.00011473,2]
[351687530,1738728640384,-500.0,0.00011479,2]
[351687532,1738728640394,-500.0,0.00011479,2]
[351687534,1738728640403,-500.0,0.00011479,2]
[351687536,1738728640415,-500.0,0.00011479,2]
[351687538,1738728640424,-500.0,0.00011479,2]
[351687540,1738728640434,-500.0,0.00011479,2]
[351687543,1738728640445,-500.0,0.00011479,2]
[351687545,1738728640455,-500.0,0.00011479,2]
[351687546,1738728640465,-500.0,0.00011479,2]
[351687548,1738728640474,-500.0,0.00011479,2]
[351687550,1738728640483,-500.0,0.00011479,2]
[351687552,1738728640493,-500.0,0.00011479,2]
[351687554,1738728640503,-500.0,0.00011479,2]
[351687556,1738728640512,-780.0,0.00011479,2]
[351687557,1738728640522,-500.0,0.00011479,2]
[351687558,1738728640531,-500.0,0.00011479,2]
[351687559,1738728640541,-500.0,0.00011479,2]
[351687560,1738728640551,-500.0,0.00011479,2]
[351687562,1738728640560,-500.0,0.00011479,2]
[351687564,1738728640570,-500.0,0.00011479,2]
[351687566,1738728640581,-500.0,0.00011479,2]
[351687568,1738728640591,-500.0,0.00011479,2]
[351687570,1738728640601,-500.0,0.00011479,2]
[351687572,1738728640613,-500.0,0.00011479,2]
[351687574,1738728640622,-500.0,0.00011479,2]
[351687576,1738728640631,-500.0,0.00011479,2]
[351687578,1738728640641,-500.0,0.00011479,2]
[351687580,1738728640650,-500.0,0.00011479,2]
[351687582,1738728640660,-500.0,0.00011479,2]
[351687584,1738728640669,-500.0,0.00011479,2]
[351687586,1738728640678,-500.0,0.00011479,2]
[351687588,1738728640687,-500.0,0.00011479,2]
[351687590,1738728640696,-500.0,0.00011479,2]
[351687592,1738728640705,-500.0,0.00011479,2]
[351687593,1738728640715,-500.0,0.00011479,2]
[351687595,1738728640725,-500.0,0.00011479,2]
[351687597,1738728640735,-500.0,0.00011479,2]
[351687599,1738728640744,-500.0,0.00011479,2]
[351687601,1738728640754,-500.0,0.00011479,2]
[351687603,1738728640763,-500.0,0.00011479,2]
[351687605,1738728640773,-500.0,0.00011479,2]
[351687607,1738728640785,-500.0,0.00011479,2]
[351687609,1738728640794,-500.0,0.00011479,2]
[351687611,1738728640804,-500.0,0.00011479,2]
[351687613,1738728640813,-500.0,0.00011479,2]
[351687615,1738728640823,-500.0,0.00011479,2]
[351687617,1738728640832,-500.0,0.00011479,2]
[351687619,1738728640842,-500.0,0.00011479,2]
[351687620,1738728640853,-500.0,0.00011479,2]
[351687622,1738728640862,-500.0,0.00011479,2]
[351687624,1738728640872,-500.0,0.00011479,2]
[351687626,1738728640881,-500.0,0.00011479,2]
[351687628,1738728640891,-500.0,0.00011479,2]
[351687630,1738728640902,-500.0,0.00011479,2]
[351687632,1738728640913,-500.0,0.00011479,2]
[351687634,1738728640923,-500.0,0.00011479,2]
[351687636,1738728640933,-500.0,0.00011479,2]
[351687638,1738728640943,-500.0,0.00011479,2]
[351687640,1738728640953,-500.0,0.00011479,2]
[351687642,1738728640963,-500.0,0.00011479,2]
[351687644,1738728640972,-500.0,0.00011479,2]
[351687646,1738728640981,-500.0,0.00011479,2]
[351687648,1738728640991,-500.0,0.00011479,2]
[351687650,1738728641001,-500.0,0.00011479,2]
[351687652,1738728641011,-500.0,0.00011479,2]
[351687654,1738728641020,-500.0,0.00011479,2]
[351687656,1738728641031,-500.0,0.00011479,2]
[351687658,1738728641040,-500.0,0.00011479,2]
[351687660,1738728641048,-500.0,0.00011479,2]
[351687662,1738728641057,-500.0,0.00011479,2]
[351687664,1738728641067,-500.0,0.00011479,2]
[351687666,1738728641076,-500.0,0.00011479,2]
[351687668,1738728641085,-500.0,0.00011479,2]
[351687670,1738728641095,-500.0,0.00011479,2]
[351687672,1738728641104,-500.0,0.00011479,2]
[351687674,1738728641113,-500.0,0.00011479,2]
[351687676,1738728641123,-500.0,0.00011479,2]
[351687678,1738728641132,-500.0,0.00011479,2]
[351687680,1738728641141,-500.0,0.00011479,2]
[351687682,1738728641150,-500.0,0.00011479,2]
[351687684,1738728641160,-500.0,0.00011479,2]
[351687686,1738728641170,-503.0,0.00011479,2]
[351687688,1738728641179,-14622.0,0.00011479,2]
[351687690,1738728641190,-8930.4311434,0.00011489,2]
[351687692,1738728641201,-2619.4975659,0.00011489,2]
[351687693,1738728641210,-845.5875448,0.00011489,2]
[351687695,1738728641219,-326.83337483,0.00011489,2]
[351687697,1738728641229,-500.0,0.00011489,2]
[351687699,1738728641239,-500.0,0.00011489,2]
[351687701,1738728641249,-569.79072297,0.00011489,2]
[351687704,1738728641260,-269.11659833,0.00011489,2]
[351687706,1738728641269,-500.0,0.00011489,2]
[351687708,1738728641280,-500.0,0.00011489,2]
[351687710,1738728641289,-500.0,0.00011489,2]
[351687712,1738728641300,-500.0,0.00011489,2]
[351687714,1738728641309,-500.0,0.00011489,2]
[351687716,1738728641319,-7320.1284451,0.00011492,2]
[351687718,1738728641330,-5709.8257469,0.00011492,2]
[351687720,1738728641339,-4099.5230486,0.00011492,2]
[351687722,1738728641349,-2489.2203503,0.00011492,2]
[351687724,1738728641358,-878.917652,0.00011492,2]
[351687725,1738728641368,-2147.1593405,0.00011492,2]
[351687728,1738728641382,-1674.8211151,0.00011492,2]
[351687729,1738728641391,-1202.4828896,0.00011492,2]
[351687731,1738728641401,-730.1446642,0.00011492,2]
[351687733,1738728641410,-257.8064388,0.00011492,2]
[351687735,1738728641419,-239.3387543,0.00011492,2]
[351687737,1738728641428,-60819.18940309,0.00011495,2]
[351687739,1738728641437,-1412.44014539,0.00011498,2]
[351687741,1738728641447,-399.43139611,0.00011498,2]
[351687743,1738728641457,-253.60353435,0.00011498,2]
[351687745,1738728641467,-500.0,0.00011499,2]
[351687746,1738728641478,-527.41,0.00011499,2]
[351687747,1738728641487,-500.0,0.00011499,2]
[351687748,1738728641497,-500.0,0.00011499,2]
[351687750,1738728641506,-500.0,0.00011499,2]
[351687752,1738728641516,-521.9,0.00011499,2]
[351687754,1738728641525,-500.0,0.00011499,2]
[351687756,1738728641535,-500.0,0.00011499,2]
[351687758,1738728641544,-500.0,0.00011499,2]
[351687759,1738728641554,-500.0,0.00011499,2]
[351687761,1738728641563,-500.0,0.00011499,2]
[351687763,1738728641573,-500.0,0.00011499,2]
[351687765,1738728641582,-500.0,0.00011499,2]
[351687767,1738728641592,-482.62,0.00011499,2]
[351687769,1738728641602,-500.0,0.00011499,2]
[351687771,1738728641613,-370.74,0.00011499,2]
[351687773,1738728641622,-1407.0,0.00011499,2]
[351687775,1738728641631,-3016.43589161,0.000115,2]
[351687777,1738728641640,-1707778.78243327,0.000115,2]
[351687780,1738728641661,-41969.44977884,0.000115,2]
[351687782,1738728641672,-381.28266465,0.000115,2]
[351687784,1738728641683,-87223.12876162,0.000115,2]
[351687786,1738728641698,-814.6,0.000115,2]
[351687788,1738728641709,-333231.35139381,0.000115,2]
[351687791,1738728641721,-698.76346784,0.000115,2]
[351687793,1738728641732,-1270.15857547,0.000115,2]
[351687795,1738728641744,-1693.3984075,0.000115,2]
[351687797,1738728641755,-5010.0,0.000115,2]
[351687800,1738728641767,-965.87317464,0.000115,2]
[351687802,1738728641779,-566.84138598,0.000115,2]
[351687804,1738728641790,-1660.07913423,0.000115,2]
[351687806,1738728641802,-475.8703,0.000115,2]
[351687808,1738728641813,-9337.25086476,0.000115,2]
[351687811,1738728641825,-2675.90331643,0.000115,2]
[351687814,1738728641847,-200824.78675383,0.000115,2]
[351687816,1738728641859,-4093.47834983,0.000115,2]
[351687819,1738728641871,-1746.3324078,0.000115,2]
[351687821,1738728641882,-4980.16031994,0.000115,2]
[351687823,1738728641893,-11148.5019612,0.000115,2]
[351687825,1738728641905,-345.84305131,0.000115,2]
[351687827,1738728641917,-168588.94454194,0.000115,2]
[351687830,1738728641929,-463.72725999,0.000115,2]
[351687832,1738728641940,-306.94443232,0.000115,2]
[351687882,1738728642651,-2500.0,8.851e-05,2]
[351687883,1738728642662,-86507.42602235,0.000115,2]
[351687884,1738728642674,-135761.00524484,0.000115,2]
[351687885,1738728642686,-470.45222615,0.000115,2]
[351687886,1738728642707,-12293.7488,0.000115,2]
[351687887,1738728642718,-499.26982462,0.000115,2]
[351687888,1738728642730,-5608.71789403,0.000115,2]
[351687889,1738728642742,-358.43662617,0.000115,2]
[351687890,1738728642818,-3399.9997,0.000115,2]
[351687891,1738728642875,-1668.84497925,0.000115,2]
[351687892,1738728642888,-5755.2801334,0.000115,2]
[351687893,1738728642900,-536.07755846,0.000115,2]
[351687894,1738728642911,-19283.55699923,0.000115,2]
[351687895,1738728642922,-2832.2,0.000115,2]
[351687896,1738728642936,-51503.86711108,0.000115,2]
[351687897,1738728642946,-27402.16630377,0.000115,2]
[351687898,1738728642957,-2306.71483423,0.000115,2]
[351687899,1738728642969,-18640.67211191,0.000115,2]
[351687900,1738728642980,-25893.7019215,0.000115,2]
[351687901,1738728642991,-332844.02832444,0.000115,2]
[351687902,1738728643003,-26295.82231094,0.000115,2]
[351687912,1738728645609,-369.75,0.00011086,2]
[351687913,1738728645619,-69.17847494,0.000115,2]
[351687914,1738728645631,-679.40528476,0.000115,2]
[351687915,1738728645668,-322.8916,0.000115,2]
[351687916,1738728645835,-20581.63367942,0.000115,2]
[351687917,1738728645847,-678.14139368,0.000115,2]
[351687918,1738728645859,-313.58601705,0.000115,2]
[351687919,1738728645871,-1220.31603624,0.000115,2]
[351687920,1738728645882,-300.0,0.000115,2]
[351687921,1738728645894,-2438.43008209,0.000115,2]
[351687977,1738729831701,-500.0,8.178e-05,2]
[351687979,1738729831711,-589.69,8.219e-05,2]
[351687983,1738729831812,-294.08,8.219e-05,2]
[351687984,1738729831823,-167.54,8.219e-05,2]
[351687985,1738729831833,-178.280128,8.698e-05,2]
[351687986,1738729831924,-51.90820969,8.698e-05,2]
[351687987,1738729831934,-300.0,8.698e-05,2]
[351687988,1738729831944,-150.0,8.698e-05,2]
[351687989,1738729831954,-49.14622908,8.699e-05,2]
[351687990,1738729831980,-1598.5381823,8.699e-05,2]
[351687991,1738729831991,-360.91208862,8.699e-05,2]
[351687992,1738729832001,-138.43665481,8.699e-05,2]
[351687993,1738729832012,-8976.00394519,8.699e-05,2]
[351687994,1738729832022,-1722.65972456,8.699e-05,2]
[351688001,1738729837612,-1992.27872491,8.699e-05,2]
[351688002,1738729837628,-363.60613795,8.699e-05,2]
[351688003,1738729837644,-622.7692827,8.699e-05,2]
[351688004,1738729837660,-543.48961775,8.699e-05,2]
[351688005,1738729837678,-1771.28400005,8.699e-05,2]
[351688006,1738729837705,-3264.13760739,8.699e-05,2]
[351688007,1738729837722,-12735.70151828,8.699e-05,2]
[351688008,1738729837734,-230.18833768,8.699e-05,2]
[351688009,1738729837746,-16323.58667422,8.8e-05,2]
[351688010,1738729837760,-5508.92049053,8.8e-05,2]
[351688011,1738729837843,-832.25,8.8e-05,2]
[351688012,1738729837862,-1787.94113712,8.8e-05,2]
[351688013,1738729837876,-13848.90059627,8.8e-05,2]
[351688014,1738729837886,-4286.05034985,8.835e-05,2]
[351688015,1738729837896,-640.12883983,8.835e-05,2]
[351688016,1738729837907,-29298.7675,8.836e-05,2]
[351688017,1738729837919,-10478.6441,8.836e-05,2]
[351688018,1738729837930,-39551.50861417,8.836e-05,2]
[351688019,1738729837944,-8093.48018583,8.836e-05,2]
[351688020,1738729837954,-2227.6112,8.836e-05,2]
[351688022,1738729837966,-382.94404027,8.836e-05,2]
[351688106,1738729839661,-3964.99538982,8.836e-05,2]
[351688107,1738729839777,-69648.08306991,8.836e-05,2]
[351688108,1738729839791,-355.5267,8.836e-05,2]
[351688109,1738729839802,-7207.5864,8.836e-05,2]
[351688110,1738729839813,-189.66063303,8.836e-05,2]
[351688111,1738729839823,-1000.0,8.851e-05,2]
[351688112,1738729839834,-500.0,8.972e-05,2]
[351688113,1738729839854,-500.0,8.972e-05,2]
[351688114,1738729839868,-32241.23205003,8.973e-05,2]
[351688115,1738729839888,-259.71546597,8.973e-05,2]
[351688116,1738729839901,-6664.5727,8.973e-05,2]
[351688117,1738729839947,-10506.26849954,8.973e-05,2]
[351688118,1738729839959,-35950.96968446,8.973e-05,2]
[351688119,1738729839970,-3616.44191554,8.973e-05,2]
[351688120,1738729840003,-625.34,8.973e-05,2]
[351688121,1738729840015,-758.21808446,8.973e-05,2]
[351688122,1738729840026,-159.87,9.078e-05,2]
[351688123,1738729840037,-159.87,9.082e-05,2]
[351688124,1738729840048,-159.87,9.086e-05,2]
[351688125,1738729840058,-159.87,9.09e-05,2]
[351688126,1738729840068,-159.87,9.094e-05,2]
[351688127,1738729840079,-635.22,9.097e-05,2]
[351688128,1738729840089,-159.87,9.098e-05,2]
[351688129,1738729840100,-159.87,9.102e-05,2]
[351688130,1738729840112,-159.87,9.107e-05,2]
[351688131,1738729840122,-500.0,9.109e-05,2]
[351688132,1738729840135,-500.0,9.109e-05,2]
[351688133,1738729840147,-159.87,9.111e-05,2]
[351688134,1738729840158,-159.87,9.115e-05,2]
[351688135,1738729840168,-159.87,9.119e-05,2]
[351688136,1738729840179,-159.87,9.123e-05,2]
[351688137,1738729840190,-268.85,9.202e-05,2]
[351688138,1738729840202,-500.0,9.246e-05,2]
[351688139,1738729840213,-500.0,9.246e-05,2]
[351688140,1738729840223,-500.0,9.288e-05,2]
[351688141,1738729840232,-250.0,9.324e-05,2]
[351688142,1738729840242,-233.52938356,9.324e-05,2]
[351688148,1738729842716,-1766.47061644,9.324e-05,2]
[351688149,1738729842726,-962.52,9.33e-05,2]
[351688150,1738729842736,-278.73,9.332e-05,2]
[351688151,1738729842746,-500.0,9.369e-05,2]
[351688152,1738729842756,-500.0,9.369e-05,2]
[351688153,1738729842766,-500.0,9.369e-05,2]
[351688154,1738729842776,-500.0,9.369e-05,2]
[351688155,1738729842790,-500.0,9.369e-05,2]
[351688157,1738729842800,-500.0,9.369e-05,2]
[351688159,1738729842811,-500.0,9.369e-05,2]
[351688161,1738729842821,-500.0,9.369e-05,2]
[351688163,1738729842831,-500.0,9.369e-05,2]
[351688165,1738729842841,-500.0,9.369e-05,2]
[351688167,1738729842851,-500.0,9.369e-05,2]
[351688169,1738729842862,-500.0,9.369e-05,2]
[351688171,1738729842874,-500.0,9.369e-05,2]
[351688172,1738729842885,-453.62248596,9.369e-05,2]
[351688173,1738729842895,-500.0,9.369e-05,2]
[351688174,1738729842905,-500.0,9.369e-05,2]
[351688175,1738729842915,-500.0,9.369e-05,2]
[351688176,1738729842925,-500.0,9.369e-05,2]
[351688177,1738729842936,-500.0,9.369e-05,2]
[351688178,1738729842946,-500.0,9.369e-05,2]
[351688179,1738729842958,-500.0,9.369e-05,2]
[351688180,1738729842968,-500.0,9.369e-05,2]
[351688181,1738729842978,-500.0,9.369e-05,2]
[351688182,1738729842988,-500.0,9.369e-05,2]
[351688183,1738729842999,-278.54600479,9.369e-05,2]
[351688184,1738729843010,-436580.51592312,9.37e-05,2]
[351688185,1738729843020,-264.73,9.383e-05,2]
[351688186,1738729843030,-500.0,9.383e-05,2]
[351688187,1738729843041,-1181.56,9.404e-05,2]
[351688188,1738729843051,-1047.73,9.439e-05,2]
[351688190,1738729843061,-3988.41,9.473e-05,2]
[351688192,1738729843072,-500.0,9.52e-05,2]
[351688193,1738729843082,-200.0,9.565e-05,2]
[351688195,1738729843092,-420.0,9.568e-05,2]
[351688196,1738729843102,-255.0,9.568e-05,2]
[351688197,1738729843113,-500.0,9.569e-05,2]
[351688198,1738729843123,-1000.0,9.626e-05,2]
[351688199,1738729843133,-23900.0,9.636e-05,2]
[351688200,1738729843143,-500.0,9.657e-05,2]
[351688201,1738729843154,-200.0,9.677e-05,2]
[351688202,1738729843164,-500.0,9.781e-05,2]
[351688205,1738729843174,-500.0,9.794e-05,2]
[351688207,1738729843184,-500.0,9.931e-05,2]
[351688209,1738729843194,-175.49,9.944e-05,2]
[351688211,1738729843204,-500.0,9.973e-05,2]
[351688213,1738729843214,-573.77892129,9.973e-05,2]
[351688215,1738729843224,-58928.6102917,0.0001,2]
[351688216,1738729843236,-512.36185,0.0001,2]
[351688217,1738729843248,-74164.38696688,0.0001,2]
[351688218,1738729843259,-4079.34492294,0.0001,2]
[351688219,1738729843271,-1817.67063,0.0001,2]
[351688220,1738729843282,-1765.7713395,0.0001,2]
[351688221,1738729843294,-332844.02832444,0.0001,2]
[351688222,1738729843305,-7042.09167685,0.0001,2]
[351688223,1738729843316,-971.4300002,0.0001,2]
[351688224,1738729843331,-301.62258698,0.0001,2]
[351688225,1738729843343,-4275.5011,0.0001,2]
[351688226,1738729843354,-1060.54499947,0.0001,2]
[351688229,1738729845772,-392.16,8.248e-05,2]
[351688230,1738729845784,-10130.11087989,0.0001,2]
[351688231,1738729845938,-976195.89680256,0.0001,2]
[351688232,1738729845950,-405.51276111,0.0001,2]
[351688233,1738729845996,-171011.9912207,0.0001,2]
[351688234,1738729846055,-365.09095076,0.0001,2]
[351688236,1738729846284,-527.077714,0.0001,2]
[351688244,1738730551157,4336.60236632,0.000189,120]
[351688260,1738730850124,-959.3,8.219e-05,2]
[351688261,1738730850145,-1022.69370832,8.443e-05,2]
[351688262,1738730953108,-300.0,8.363e-05,2]
[351688263,1738730953129,-23900.0,8.364e-05,2]
[351688264,1738730953151,-169.61,8.418e-05,2]
[351688265,1738730953171,-701.92629168,8.443e-05,2]
[351688266,1738730953192,-438.17,8.609e-05,2]
[351688267,1738730953214,-500.0,8.637e-05,2]
[351688268,1738730953235,-150.0,8.795e-05,2]
[351688269,1738730953256,-522.51439893,8.835e-05,2]
[351688270,1738730953277,-506.11499768,8.835e-05,2]
[351688271,1738730953299,-502.49778258,8.835e-05,2]
[351688272,1738730953324,-500.0,8.835e-05,2]
[351688273,1738730953346,-8115.1159,8.836e-05,2]
[351688274,1738730953368,-250.0,8.837e-05,2]
[351688275,1738730953388,-1000.0,8.851e-05,2]
[351688276,1738730953411,-2564.27,8.864e-05,2]
[351688277,1738730953434,-150.99,8.864e-05,2]
[351688278,1738730953454,-328.92,8.864e-05,2]
[351688279,1738730953473,-9999.99,8.864e-05,2]
[351688280,1738730953494,-999.99,8.864e-05,2]
[351688281,1738730953513,-299.99,8.864e-05,2]
[351688282,1738730953533,-3564.03,8.864e-05,2]
[351688283,1738730953552,-39420.62114913,8.864e-05,2]
[351688284,1738730954088,-25209.88235034,8.864e-05,2]
[351688285,1738730959115,-7977.326028,8.864e-05,2]
[351688286,1738730964121,-11298.80047253,8.864e-05,2]
[351688287,1738730964143,-150.99,8.864e-05,2]
[351688288,1738730964163,-813.35,8.864e-05,2]
[351688289,1738730964185,-7015.72,8.864e-05,2]
[351688290,1738730964207,-473.0,8.864e-05,2]
[351688291,1738730964228,-1521.13,8.864e-05,2]
[351688292,1738730964248,-9999.99,8.864e-05,2]
[351688293,1738730964270,-9999.99,8.864e-05,2]
[351688294,1738730964289,-1343.18,8.953e-05,2]
[351688295,1738730964310,-265.51,8.953e-05,2]
[351688296,1738730964331,-500.0,8.972e-05,2]
[351688297,1738730964351,-150.0,8.972e-05,2]
[351688298,1738730964371,-14596.48680747,8.973e-05,2]
[351688299,1738730967150,-11450.33979253,8.973e-05,2]
[351688300,1738730967173,-1386.43,9.02e-05,2]
[351688301,1738730967195,-640.12883984,9.02e-05,2]
[351688302,1738730967215,-1416.0,9.025e-05,2]
[351688303,1738730967236,-2958.63,9.032e-05,2]
[351688304,1738730967257,-500.0,9.109e-05,2]
[351688305,1738730967281,-1000.0,9.154e-05,2]
[351688306,1738730967302,-420.0,9.2e-05,2]
[351688307,1738730967324,-500.0,9.246e-05,2]
[351688308,1738730967346,-169.61,9.259e-05,2]
[351688309,1738730967367,-500.0,9.383e-05,2]
[351688310,1738730967388,-467.35525979,9.52e-05,2]
[351688311,1738730967412,-439.41,9.589e-05,2]
[351688312,1738730967433,-1548.35,9.589e-05,2]
[351688313,1738730967456,-189.66063302,9.67e-05,2]
[351688314,1738730967478,-500.0,9.736e-05,2]
[351688315,1738730967500,-255.0,9.869e-05,2]
[351688316,1738730967522,-500.0,9.973e-05,2]
[351688317,1738730967542,-500.0,9.973e-05,2]
[351688318,1738730967563,-500.0,9.973e-05,2]
[351688319,1738730967587,-500.0,9.999e-05,2]
[351688320,1738730967607,-860.64,9.999e-05,2]
[351688321,1738730967627,-500.0,9.999e-05,2]
[351688322,1738730967649,-500.0,9.999e-05,2]
[351688323,1738730967670,-500.0,9.999e-05,2]
[351688324,1738730967691,-359.1298323,9.999e-05,2]
[351688325,1738730967712,-500.0,9.999e-05,2]
[351688326,1738730967733,-500.0,9.999e-05,2]
[351688327,1738730967755,-219.21504803,9.999e-05,2]
[351688328,1738730967776,-197.88939701,9.999e-05,2]
[351688329,1738730967798,-115345.00579748,0.0001,2]
[351688330,1738730969104,-4756.747324,0.0001,2]
[351688332,1738731031924,-923.0696,8.851e-05,2]
[351688333,1738731031935,-82.1304,8.972e-05,2]
[351688334,1738731031948,-217.8696,8.972e-05,2]
[351688335,1738731031958,-1350.13635115,8.973e-05,2]
[351688336,1738731031989,-476.67512439,8.973e-05,2]
[351688337,1738731032038,-988.3344858,8.973e-05,2]
[351688338,1738731032051,-1341.93057131,8.973e-05,2]
[351688339,1738731032150,-7137.58497228,8.973e-05,2]
[351688340,1738731032269,-7157.13546805,8.973e-05,2]
[351688341,1738731032809,-654.1320935,8.973e-05,2]
[351688393,1738731037819,-2519.70395097,8.973e-05,2]
[351688394,1738731037831,-20693.81888255,8.973e-05,2]
[351688395,1738731037841,-420.0,9.869e-05,2]
[351688396,1738731037851,-500.0,9.999e-05,2]
[351688397,1738731037860,-500.0,9.999e-05,2]
[351688398,1738731037870,-500.0,9.999e-05,2]
[351688399,1738731037880,-517.5749653,9.999e-05,2]
[351688400,1738731037894,-54279.90920789,0.0001,2]
[351688401,1738731037906,-5869.85498656,0.0001,2]
[351688402,1738731038047,-57796.38299679,0.0001,2]
[351688412,1738731039900,-319.6296,0.0001,2]
[351688413,1738731040011,-96109.56992787,0.0001,2]
[351688414,1738731040022,-476.30598958,0.0001,2]
[351688415,1738731040122,-4540.28453403,0.0001,2]
[351688416,1738731040182,-505.36627741,0.0001,2]
[351688417,1738731040194,-76772.62799541,0.0001,2]
[351688418,1738731040206,-39923.30376,0.0001,2]
[351688419,1738731040218,-71325.71430711,0.0001,2]
[351688429,1738731042983,-467.84499314,0.0001,2]